[Event "*** SCC Grand Prix: Titled Tuesday Blitz"]
[Site "Chess.com"]
[Date "2020.07.21"]
[Round "6"]
[White "GustavoJuarezF"]
[Black "profofchess"]
[Result "0-1"]
[WhiteElo "2030"]
[BlackElo "2356"]
[TimeControl "180+1"]
[EndTime "11:07:33 PDT"]
[Termination "profofchess won by checkmate"]

1. e4 {[%clk 0:03:00.9]} 1... e6 {[%clk 0:03:00.1]} 2. d4 {[%clk 0:02:59.2]}
2... d5 {[%clk 0:03:00.7]} 3. exd5 {[%clk 0:02:57.9]} 3... exd5 {[%clk
0:03:00.6]} 4. Bd3 {[%clk 0:02:57.4]} 4... Nc6 {[%clk 0:02:59.9]} 5. Nf3 {[%clk
0:02:55.9]} 5... Bg4 {[%clk 0:02:58.5]} 6. c3 {[%clk 0:02:53.3]} 6... Bd6 {[%clk
0:02:57.5]} 7. Be3 {[%clk 0:02:51.2]} 7... Qd7 {[%clk 0:02:56.8]} 8. Nbd2 {[%clk
0:02:50.6]} 8... Nge7 {[%clk 0:02:54.8]} 9. h3 {[%clk 0:02:50.6]} 9... Bh5
{[%clk 0:02:53.9]} 10. Qb3 {[%clk 0:02:35]} 10... O-O-O {[%clk 0:02:46.7]} 11.
Bb5 {[%clk 0:02:24.6]} 11... a6 {[%clk 0:02:28.4]} 12. Bd3 {[%clk 0:02:18]}
12... f6 {[%clk 0:02:24.3]} 13. Qc2 {[%clk 0:02:14.7]} 13... Bg6 {[%clk
0:02:20.3]} 14. b4 {[%clk 0:02:11.3]} 14... Bxd3 {[%clk 0:02:19.2]} 15. Qxd3
{[%clk 0:02:10.3]} 15... Nf5 {[%clk 0:02:09.1]} 16. a4 {[%clk 0:02:07.8]} 16...
Nxe3 {[%clk 0:02:08.9]} 17. fxe3 {[%clk 0:02:04.3]} 17... Bg3+ {[%clk
0:02:08.7]} 18. Kd1 {[%clk 0:02:01.5]} 18... Ne7 {[%clk 0:02:01.6]} 19. e4
{[%clk 0:01:45.8]} 19... Rhe8 {[%clk 0:01:50]} 20. Kc2 {[%clk 0:01:39.3]} 20...
Kb8 {[%clk 0:01:40.8]} 21. Rhb1 {[%clk 0:01:12.9]} 21... Nc8 {[%clk 0:01:37.2]}
22. a5 {[%clk 0:01:10.9]} 22... Na7 {[%clk 0:01:18.1]} 23. Ng1 {[%clk
0:00:57.8]} 23... Bf4 {[%clk 0:01:09.8]} 24. Re1 {[%clk 0:00:54.8]} 24... Bxd2
{[%clk 0:00:57.5]} 25. Kxd2 {[%clk 0:00:52.7]} 25... Nb5 {[%clk 0:00:51.7]} 26.
Nf3 {[%clk 0:00:51.4]} 26... dxe4 {[%clk 0:00:31.1]} 27. Rxe4 {[%clk 0:00:50.2]}
27... Nd6 {[%clk 0:00:24.4]} 28. Rxe8 {[%clk 0:00:48.4]} 28... Rxe8 {[%clk
0:00:25.3]} 29. Re1 {[%clk 0:00:47.9]} 29... g6 {[%clk 0:00:21.7]} 30. Rxe8+
{[%clk 0:00:36.8]} 30... Qxe8 {[%clk 0:00:22.6]} 31. Qe2 {[%clk 0:00:33.7]}
31... Qa4 {[%clk 0:00:22]} 32. Qd1 {[%clk 0:00:23]} 32... Nc4+ {[%clk
0:00:19.5]} 33. Ke1 {[%clk 0:00:16.8]} 33... Qxd1+ {[%clk 0:00:17.8]} 34. Kxd1
{[%clk 0:00:15.9]} 34... Ne3+ {[%clk 0:00:18.7]} 35. Ke2 {[%clk 0:00:15.7]}
35... Nxg2 {[%clk 0:00:19.6]} 36. c4 {[%clk 0:00:15.4]} 36... Nf4+ {[%clk
0:00:19.1]} 37. Ke3 {[%clk 0:00:15.3]} 37... Nxh3 {[%clk 0:00:19.7]} 38. Ke4
{[%clk 0:00:15.7]} 38... Ng5+ {[%clk 0:00:19.6]} 39. Kd5 {[%clk 0:00:15.7]}
39... Nxf3 {[%clk 0:00:19.4]} 40. Ke6 {[%clk 0:00:15.8]} 40... Nxd4+ {[%clk
0:00:18.6]} 41. Kxf6 {[%clk 0:00:16.1]} 41... Nc2 {[%clk 0:00:18.8]} 42. Kg5
{[%clk 0:00:15.7]} 42... Nxb4 {[%clk 0:00:18.8]} 43. Kh6 {[%clk 0:00:15.9]}
43... Nc6 {[%clk 0:00:18.9]} 44. Kxh7 {[%clk 0:00:16.4]} 44... g5 {[%clk
0:00:18.9]} 45. Kg6 {[%clk 0:00:16.7]} 45... g4 {[%clk 0:00:19.3]} 46. Kg5
{[%clk 0:00:17.3]} 46... g3 {[%clk 0:00:19.8]} 47. Kf4 {[%clk 0:00:17.9]} 47...
g2 {[%clk 0:00:20.3]} 48. Kf3 {[%clk 0:00:18.7]} 48... g1=Q {[%clk 0:00:20.6]}
49. Ke4 {[%clk 0:00:19.4]} 49... Qd4+ {[%clk 0:00:20.3]} 50. Kf5 {[%clk
0:00:19.7]} 50... Qc5+ {[%clk 0:00:20.2]} 51. Ke4 {[%clk 0:00:19.3]} 51... b6
{[%clk 0:00:19.7]} 52. Kd3 {[%clk 0:00:18.5]} 52... Qb4 {[%clk 0:00:19.1]} 53.
axb6 {[%clk 0:00:16.8]} 53... cxb6 {[%clk 0:00:18.8]} 54. Ke4 {[%clk 0:00:16.6]}
54... a5 {[%clk 0:00:18]} 55. Kf5 {[%clk 0:00:16.9]} 55... a4 {[%clk 0:00:18]}
56. Ke6 {[%clk 0:00:17.2]} 56... Na5 {[%clk 0:00:16.8]} 57. Kd7 {[%clk 0:00:17]}
57... Qc5 {[%clk 0:00:15.9]} 58. Ke6 {[%clk 0:00:15.8]} 58... a3 {[%clk
0:00:15.6]} 59. Kd7 {[%clk 0:00:15.6]} 59... a2 {[%clk 0:00:15.6]} 60. Ke6
{[%clk 0:00:16]} 60... a1=Q {[%clk 0:00:15.4]} 61. Kd7 {[%clk 0:00:16.7]} 61...
Qg7+ {[%clk 0:00:14.3]} 62. Ke6 {[%clk 0:00:16.5]} 62... Qce5# {[%clk
0:00:13.3]} 0-1

[Event "*** SCC Grand Prix: Titled Tuesday Blitz"]
[Site "Chess.com"]
[Date "2020.07.21"]
[Round "6"]
[White "londonkid"]
[Black "Arjun2002"]
[Result "0-1"]
[WhiteElo "2415"]
[BlackElo "2608"]
[TimeControl "180+1"]
[EndTime "11:07:34 PDT"]
[Termination "Arjun2002 won by resignation"]

1. d4 {[%clk 0:03:00.9]} 1... d5 {[%clk 0:02:57.9]} 2. c4 {[%clk 0:03:01.2]}
2... c6 {[%clk 0:02:57.2]} 3. cxd5 {[%clk 0:03:01]} 3... cxd5 {[%clk 0:02:58.1]}
4. Nf3 {[%clk 0:03:01.7]} 4... Nf6 {[%clk 0:02:58.6]} 5. Nc3 {[%clk 0:03:02.4]}
5... Nc6 {[%clk 0:02:59.1]} 6. Bf4 {[%clk 0:03:03.1]} 6... Ne4 {[%clk
0:02:52.5]} 7. e3 {[%clk 0:02:57.3]} 7... Nxc3 {[%clk 0:02:52.3]} 8. bxc3 {[%clk
0:02:57.1]} 8... e6 {[%clk 0:02:53.2]} 9. Bd3 {[%clk 0:02:56.4]} 9... Bd6 {[%clk
0:02:53.5]} 10. Bg3 {[%clk 0:02:56.4]} 10... O-O {[%clk 0:02:49.3]} 11. O-O
{[%clk 0:02:56.4]} 11... b6 {[%clk 0:02:48.6]} 12. Rc1 {[%clk 0:02:55.6]} 12...
Bb7 {[%clk 0:02:46.7]} 13. Ne5 {[%clk 0:02:50.4]} 13... Nxe5 {[%clk 0:02:45.2]}
14. dxe5 {[%clk 0:02:50.8]} 14... Ba3 {[%clk 0:02:44.6]} 15. Rb1 {[%clk
0:02:48.4]} 15... Rc8 {[%clk 0:02:43.8]} 16. Rb3 {[%clk 0:02:47.3]} 16... Be7
{[%clk 0:02:43.6]} 17. f4 {[%clk 0:02:46.7]} 17... f5 {[%clk 0:02:30.4]} 18.
exf6 {[%clk 0:02:42.3]} 18... Bxf6 {[%clk 0:02:29.5]} 19. Qh5 {[%clk 0:02:42.4]}
19... g6 {[%clk 0:02:23.1]} 20. Qg4 {[%clk 0:02:41]} 20... Qe7 {[%clk
0:02:18.9]} 21. h4 {[%clk 0:02:34.6]} 21... e5 {[%clk 0:02:04]} 22. f5 {[%clk
0:02:09]} 22... e4 {[%clk 0:01:58]} 23. Bc2 {[%clk 0:01:58.3]} 23... Qd7 {[%clk
0:01:52.2]} 24. h5 {[%clk 0:01:52.9]} 24... g5 {[%clk 0:01:48.5]} 25. h6 {[%clk
0:01:45.2]} 25... Rc5 {[%clk 0:01:20.6]} 26. Rd1 {[%clk 0:01:33.5]} 26... Qc6
{[%clk 0:01:18.4]} 27. Bf4 {[%clk 0:01:28.6]} 27... Kh8 {[%clk 0:01:10.7]} 28.
Bxg5 {[%clk 0:01:26]} 28... Rg8 {[%clk 0:01:09.7]} 29. Bxf6+ {[%clk 0:01:24.7]}
29... Qxf6 {[%clk 0:01:10.6]} 30. Qf4 {[%clk 0:01:21.2]} 30... Rxc3 {[%clk
0:00:57.5]} 31. Rxc3 {[%clk 0:01:20.6]} 31... Qxc3 {[%clk 0:00:58.4]} 32. Bb3
{[%clk 0:01:18.5]} 32... Qb2 {[%clk 0:00:55.4]} 33. Qf2 {[%clk 0:01:06.5]} 33...
Qxf2+ {[%clk 0:00:52.9]} 34. Kxf2 {[%clk 0:01:07.4]} 34... Rg5 {[%clk 0:00:53]}
35. g4 {[%clk 0:01:03]} 35... Rxg4 {[%clk 0:00:50.3]} 36. Bxd5 {[%clk
0:01:02.8]} 36... Bxd5 {[%clk 0:00:50.4]} 37. Rxd5 {[%clk 0:01:03.2]} 37... Kg8
{[%clk 0:00:50.6]} 38. Rd8+ {[%clk 0:01:01.7]} 38... Kf7 {[%clk 0:00:50.8]} 39.
Rd7+ {[%clk 0:01:02.3]} 39... Kf6 {[%clk 0:00:51.3]} 40. Rxh7 {[%clk 0:00:59.9]}
40... Rh4 {[%clk 0:00:51.5]} 41. Rxa7 {[%clk 0:00:57.5]} 41... Rxh6 {[%clk
0:00:50.5]} 42. Ra6 {[%clk 0:00:52.6]} 42... Kxf5 {[%clk 0:00:49.1]} 43. a4
{[%clk 0:00:52.4]} 43... Kg4 {[%clk 0:00:32.6]} 44. Kg2 {[%clk 0:00:38.6]} 44...
Rc6 {[%clk 0:00:29]} 45. Kf2 {[%clk 0:00:20]} 45... Rc2+ {[%clk 0:00:28.5]} 46.
Ke1 {[%clk 0:00:20.5]} 46... Rb2 {[%clk 0:00:27]} 47. a5 {[%clk 0:00:17.7]}
47... bxa5 {[%clk 0:00:23.1]} 48. Rxa5 {[%clk 0:00:18.6]} 48... Kf3 {[%clk
0:00:23.5]} 49. Ra3 {[%clk 0:00:16.4]} 49... Re2+ {[%clk 0:00:23.5]} 50. Kf1
{[%clk 0:00:15.6]} 50... Rxe3 {[%clk 0:00:23.6]} 51. Rxe3+ {[%clk 0:00:13.8]}
51... Kxe3 {[%clk 0:00:23.5]} 52. Ke1 {[%clk 0:00:14.4]} 52... Kd3 {[%clk
0:00:23.6]} 53. Kd1 {[%clk 0:00:14.7]} 53... e3 {[%clk 0:00:24]} 54. Ke1 {[%clk
0:00:15.1]} 54... e2 {[%clk 0:00:24.4]} 55. Kf2 {[%clk 0:00:07.7]} 55... Kd2
{[%clk 0:00:25.3]} 56. Kf3 {[%clk 0:00:06.6]} 56... e1=Q {[%clk 0:00:26.2]} 57.
Kg4 {[%clk 0:00:06.8]} 57... Qf2 {[%clk 0:00:26.2]} 0-1

[Event "*** SCC Grand Prix: Titled Tuesday Blitz"]
[Site "Chess.com"]
[Date "2020.07.21"]
[Round "6"]
[White "BlackBoarder"]
[Black "ChronicUnhappiness"]
[Result "1-0"]
[WhiteElo "2578"]
[BlackElo "2381"]
[TimeControl "180+1"]
[EndTime "11:07:34 PDT"]
[Termination "BlackBoarder won by resignation"]

1. e4 {[%clk 0:02:31.3]} 1... d6 {[%clk 0:02:59.1]} 2. d4 {[%clk 0:02:31.3]}
2... Nf6 {[%clk 0:02:59.4]} 3. Nc3 {[%clk 0:02:31.7]} 3... g6 {[%clk 0:02:59.7]}
4. Be2 {[%clk 0:02:32.2]} 4... Bg7 {[%clk 0:02:54.7]} 5. h4 {[%clk 0:02:32.3]}
5... h5 {[%clk 0:02:53.9]} 6. Nf3 {[%clk 0:02:30.6]} 6... c6 {[%clk 0:02:50.4]}
7. a4 {[%clk 0:02:30.3]} 7... b6 {[%clk 0:02:45.3]} 8. O-O {[%clk 0:02:27.1]}
8... a6 {[%clk 0:02:44.5]} 9. Ng5 {[%clk 0:02:19.5]} 9... O-O {[%clk 0:02:43.3]}
10. Bf4 {[%clk 0:02:05.3]} 10... Bb7 {[%clk 0:02:15.5]} 11. Qd2 {[%clk 0:01:43]}
11... b5 {[%clk 0:02:10.1]} 12. Nd1 {[%clk 0:01:29.4]} 12... Nbd7 {[%clk
0:01:59.4]} 13. c3 {[%clk 0:01:23.4]} 13... e5 {[%clk 0:01:56.8]} 14. Bg3 {[%clk
0:01:14.9]} 14... d5 {[%clk 0:01:56.3]} 15. dxe5 {[%clk 0:00:59.7]} 15... Nxe4
{[%clk 0:01:55.1]} 16. Nxe4 {[%clk 0:00:58.9]} 16... dxe4 {[%clk 0:01:54.7]} 17.
e6 {[%clk 0:00:32]} 17... fxe6 {[%clk 0:01:44.5]} 18. Ne3 {[%clk 0:00:32.3]}
18... Ne5 {[%clk 0:01:38.6]} 19. Qc2 {[%clk 0:00:31.6]} 19... Qe7 {[%clk
0:01:26.2]} 20. Qxe4 {[%clk 0:00:28]} 20... c5 {[%clk 0:01:26.1]} 21. Qc2 {[%clk
0:00:22.8]} 21... c4 {[%clk 0:01:20.8]} 22. axb5 {[%clk 0:00:20.7]} 22... axb5
{[%clk 0:01:20.1]} 23. Rxa8 {[%clk 0:00:21.6]} 23... Bxa8 {[%clk 0:01:18.6]} 24.
Bxe5 {[%clk 0:00:17.9]} 24... Bxe5 {[%clk 0:01:03.5]} 25. Qxg6+ {[%clk
0:00:17.9]} 25... Qg7 {[%clk 0:01:03.5]} 26. Qxg7+ {[%clk 0:00:16.2]} 26... Kxg7
{[%clk 0:01:03.6]} 27. Bxh5 {[%clk 0:00:17.1]} 27... Rh8 {[%clk 0:01:03]} 28.
Bf3 {[%clk 0:00:11.6]} 28... Bxf3 {[%clk 0:01:01.1]} 29. gxf3 {[%clk 0:00:12.5]}
29... Rxh4 {[%clk 0:01:01.1]} 30. Ng4 {[%clk 0:00:09.6]} 30... Bf4 {[%clk
0:00:58.1]} 31. Ra1 {[%clk 0:00:07.3]} 31... Rh5 {[%clk 0:00:52.7]} 32. Ra7+
{[%clk 0:00:07.4]} 32... Kg6 {[%clk 0:00:50.2]} 33. Re7 {[%clk 0:00:07.7]} 33...
e5 {[%clk 0:00:23]} 34. Rb7 {[%clk 0:00:07.5]} 34... e4 {[%clk 0:00:22.1]} 35.
fxe4 {[%clk 0:00:06.2]} 35... Kg5 {[%clk 0:00:22.3]} 36. f3 {[%clk 0:00:05.2]}
36... Kh4 {[%clk 0:00:21.4]} 37. Kg2 {[%clk 0:00:05.4]} 37... Rg5 {[%clk
0:00:18.6]} 38. Rh7+ {[%clk 0:00:05.1]} 38... Rh5 {[%clk 0:00:17.9]} 39. Rf7
{[%clk 0:00:05.2]} 39... Bc1 {[%clk 0:00:17.6]} 40. e5 {[%clk 0:00:03.7]} 40...
Bxb2 {[%clk 0:00:16.3]} 41. e6 {[%clk 0:00:04.3]} 41... Rh8 {[%clk 0:00:12.6]}
42. e7 {[%clk 0:00:04.2]} 42... Re8 {[%clk 0:00:12.6]} 43. Nf6 {[%clk
0:00:04.3]} 43... Rxe7 {[%clk 0:00:10.2]} 44. Rxe7 {[%clk 0:00:05.2]} 44... Bxc3
{[%clk 0:00:11.1]} 45. Rb7 {[%clk 0:00:05.5]} 45... Bxf6 {[%clk 0:00:10.2]} 46.
Rxb5 {[%clk 0:00:05.9]} 46... c3 {[%clk 0:00:10.8]} 47. Rf5 {[%clk 0:00:05.9]}
47... Bg7 {[%clk 0:00:09]} 48. Rc5 {[%clk 0:00:05.5]} 48... Bd4 {[%clk
0:00:07.3]} 49. Rc4 {[%clk 0:00:05.2]} 49... Kg5 {[%clk 0:00:07.9]} 50. Rxd4
{[%clk 0:00:05.4]} 50... c2 {[%clk 0:00:08.8]} 51. Rc4 {[%clk 0:00:06]} 1-0

[Event "*** SCC Grand Prix: Titled Tuesday Blitz"]
[Site "Chess.com"]
[Date "2020.07.21"]
[Round "6"]
[White "turayev_shahruh17"]
[Black "cassoulet"]
[Result "1-0"]
[WhiteElo "2545"]
[BlackElo "2652"]
[TimeControl "180+1"]
[EndTime "11:07:36 PDT"]
[Termination "turayev_shahruh17 won by checkmate"]

1. e4 {[%clk 0:03:00]} 1... c5 {[%clk 0:02:59.3]} 2. Nc3 {[%clk 0:03:00.5]} 2...
Nc6 {[%clk 0:02:58.1]} 3. Bb5 {[%clk 0:03:00.9]} 3... g6 {[%clk 0:02:57.7]} 4.
Bxc6 {[%clk 0:03:01.1]} 4... bxc6 {[%clk 0:02:57.9]} 5. f4 {[%clk 0:03:02]} 5...
Bg7 {[%clk 0:02:58.1]} 6. Nf3 {[%clk 0:03:02.6]} 6... d6 {[%clk 0:02:58.6]} 7.
O-O {[%clk 0:03:03.1]} 7... Bg4 {[%clk 0:02:58.4]} 8. h3 {[%clk 0:03:02.2]} 8...
Bxf3 {[%clk 0:02:58.3]} 9. Qxf3 {[%clk 0:03:03.1]} 9... Nf6 {[%clk 0:02:58.9]}
10. d3 {[%clk 0:03:03.2]} 10... O-O {[%clk 0:02:58.4]} 11. f5 {[%clk 0:03:01.2]}
11... Rb8 {[%clk 0:02:56.6]} 12. Rb1 {[%clk 0:03:00.3]} 12... Nd7 {[%clk
0:02:56.3]} 13. Ne2 {[%clk 0:02:51.1]} 13... Qa5 {[%clk 0:02:53.3]} 14. a3
{[%clk 0:02:47.8]} 14... c4 {[%clk 0:02:53.4]} 15. Qg3 {[%clk 0:02:34.4]} 15...
cxd3 {[%clk 0:02:52.2]} 16. cxd3 {[%clk 0:02:35.3]} 16... Rb3 {[%clk 0:02:48.6]}
17. Bg5 {[%clk 0:02:32.1]} 17... Re8 {[%clk 0:02:37.7]} 18. Qh4 {[%clk
0:02:21.7]} 18... Rxd3 {[%clk 0:02:26.6]} 19. Bxe7 {[%clk 0:02:10.1]} 19... Qe5
{[%clk 0:01:58.2]} 20. f6 {[%clk 0:02:08]} 20... g5 {[%clk 0:01:40.1]} 21. Qf2
{[%clk 0:01:29.9]} 21... Qxe4 {[%clk 0:01:08.8]} 22. Ng3 {[%clk 0:01:12]} 22...
Qe3 {[%clk 0:00:48.5]} 23. Qxe3 {[%clk 0:01:10.4]} 23... Rxe3 {[%clk 0:00:49.4]}
24. Nf5 {[%clk 0:01:10.2]} 24... Nxf6 {[%clk 0:00:38.9]} 25. Nxg7 {[%clk
0:00:38.3]} 25... R8xe7 {[%clk 0:00:31.4]} 26. Nf5 {[%clk 0:00:38.4]} 26... Nd5
{[%clk 0:00:30.1]} 27. Rbc1 {[%clk 0:00:32.8]} 27... Rc7 {[%clk 0:00:17.7]} 28.
Nxe3 {[%clk 0:00:32.3]} 28... Nxe3 {[%clk 0:00:18.6]} 29. Rfe1 {[%clk
0:00:28.3]} 29... Nd5 {[%clk 0:00:18.1]} 30. b4 {[%clk 0:00:28.2]} 30... Kf8
{[%clk 0:00:16.9]} 31. g3 {[%clk 0:00:27.2]} 31... h6 {[%clk 0:00:16.7]} 32.
Red1 {[%clk 0:00:27.2]} 32... Nb6 {[%clk 0:00:04.9]} 33. Rxd6 {[%clk 0:00:26.5]}
33... Re7 {[%clk 0:00:05.8]} 34. Rdxc6 {[%clk 0:00:25.2]} 34... Re3 {[%clk
0:00:06.1]} 35. R1c3 {[%clk 0:00:24.4]} 35... Re1+ {[%clk 0:00:03.6]} 36. Kf2
{[%clk 0:00:24.8]} 36... Rb1 {[%clk 0:00:04.5]} 37. Rxh6 {[%clk 0:00:22.9]}
37... Nd5 {[%clk 0:00:05.2]} 38. Rd3 {[%clk 0:00:21.4]} 38... Rb2+ {[%clk
0:00:05.7]} 39. Kf3 {[%clk 0:00:21.7]} 39... Ne7 {[%clk 0:00:06]} 40. Rh8+
{[%clk 0:00:17.6]} 40... Kg7 {[%clk 0:00:05.8]} 41. Ra8 {[%clk 0:00:17.9]} 41...
Ng6 {[%clk 0:00:06.1]} 42. Re3 {[%clk 0:00:15.3]} 42... f5 {[%clk 0:00:03.5]}
43. Rxa7+ {[%clk 0:00:15.1]} 43... Kh6 {[%clk 0:00:04]} 44. Re6 {[%clk
0:00:14.2]} 44... Rb3+ {[%clk 0:00:02.6]} 45. Ke2 {[%clk 0:00:14.6]} 45... Rb2+
{[%clk 0:00:03.1]} 46. Kd3 {[%clk 0:00:14.9]} 46... f4 {[%clk 0:00:02.1]} 47.
gxf4 {[%clk 0:00:13.5]} 47... Kh5 {[%clk 0:00:01.2]} 48. Rh7# {[%clk 0:00:13.3]}
1-0

[Event "*** SCC Grand Prix: Titled Tuesday Blitz"]
[Site "Chess.com"]
[Date "2020.07.21"]
[Round "6"]
[White "Chessmatus"]
[Black "nobodyperfect13"]
[Result "1-0"]
[WhiteElo "2430"]
[BlackElo "2281"]
[TimeControl "180+1"]
[EndTime "11:07:36 PDT"]
[Termination "Chessmatus won by resignation"]

1. e4 {[%clk 0:03:00.9]} 1... c5 {[%clk 0:02:58.4]} 2. Nf3 {[%clk 0:03:01]} 2...
e6 {[%clk 0:02:57.9]} 3. d4 {[%clk 0:03:01.1]} 3... cxd4 {[%clk 0:02:57.9]} 4.
Nxd4 {[%clk 0:03:02]} 4... a6 {[%clk 0:02:57.2]} 5. Bd3 {[%clk 0:03:01.7]} 5...
b5 {[%clk 0:02:54.7]} 6. O-O {[%clk 0:03:00.5]} 6... Bb7 {[%clk 0:02:53.7]} 7.
Nc3 {[%clk 0:02:59.6]} 7... d6 {[%clk 0:02:51.2]} 8. Re1 {[%clk 0:02:59.4]} 8...
Nf6 {[%clk 0:02:50.6]} 9. Bg5 {[%clk 0:02:53.6]} 9... Be7 {[%clk 0:02:50.1]} 10.
Qf3 {[%clk 0:02:41]} 10... Nbd7 {[%clk 0:02:48.4]} 11. Qh3 {[%clk 0:02:35.4]}
11... Nc5 {[%clk 0:02:37.4]} 12. a3 {[%clk 0:02:24.4]} 12... Rc8 {[%clk
0:02:35]} 13. Rad1 {[%clk 0:02:21.1]} 13... Qc7 {[%clk 0:02:18.3]} 14. Rd2
{[%clk 0:01:14.7]} 14... h6 {[%clk 0:02:07.7]} 15. Bf4 {[%clk 0:00:30.2]} 15...
Nfd7 {[%clk 0:01:49.2]} 16. Bxb5 {[%clk 0:00:17]} 16... axb5 {[%clk 0:01:42.5]}
17. Ndxb5 {[%clk 0:00:17.2]} 17... Qb8 {[%clk 0:01:42.3]} 18. Bxd6 {[%clk
0:00:17.3]} 18... Qa8 {[%clk 0:01:26.4]} 19. Bxe7 {[%clk 0:00:16.4]} 19... Kxe7
{[%clk 0:01:25.4]} 20. Nd6 {[%clk 0:00:16.2]} 20... Nf6 {[%clk 0:01:13.9]} 21.
Qg3 {[%clk 0:00:06.8]} 21... g5 {[%clk 0:01:07.4]} 22. Nxc8+ {[%clk 0:00:06.8]}
22... Qxc8 {[%clk 0:01:05.2]} 23. Qd6+ {[%clk 0:00:07.3]} 23... Ke8 {[%clk
0:01:05]} 24. Nd5 {[%clk 0:00:07.7]} 24... Bxd5 {[%clk 0:00:44.7]} 25. exd5
{[%clk 0:00:08.6]} 25... Nce4 {[%clk 0:00:43.6]} 26. Qe5 {[%clk 0:00:07.6]}
26... Qd7 {[%clk 0:00:37.4]} 27. Rxe4 {[%clk 0:00:06]} 27... Nxe4 {[%clk
0:00:35.3]} 28. Qxh8+ {[%clk 0:00:06.2]} 28... Ke7 {[%clk 0:00:35.5]} 29. d6+
{[%clk 0:00:05.4]} 29... Nxd6 {[%clk 0:00:34.1]} 30. Qxh6 {[%clk 0:00:05.5]}
30... Qb5 {[%clk 0:00:32.5]} 31. Qg7 {[%clk 0:00:02.7]} 31... Qf5 {[%clk
0:00:29.3]} 32. Qd4 {[%clk 0:00:02.6]} 32... Qf4 {[%clk 0:00:28.6]} 33. Qxd6+
{[%clk 0:00:02.3]} 33... Qxd6 {[%clk 0:00:27.9]} 34. Rxd6 {[%clk 0:00:03.2]}
34... Kxd6 {[%clk 0:00:28.8]} 35. Kf1 {[%clk 0:00:04.1]} 35... Kd5 {[%clk
0:00:29.1]} 36. Ke2 {[%clk 0:00:04.7]} 36... Kc4 {[%clk 0:00:29.3]} 37. g3
{[%clk 0:00:05]} 37... g4 {[%clk 0:00:28.7]} 38. f3 {[%clk 0:00:04.7]} 38...
gxf3+ {[%clk 0:00:25.7]} 39. Kxf3 {[%clk 0:00:05.6]} 39... f5 {[%clk 0:00:25.6]}
40. Kf4 {[%clk 0:00:05.5]} 40... Kd4 {[%clk 0:00:25.7]} 41. h4 {[%clk
0:00:05.9]} 41... e5+ {[%clk 0:00:24.7]} 42. Kf3 {[%clk 0:00:05.3]} 42... e4+
{[%clk 0:00:22.5]} 43. Ke2 {[%clk 0:00:05.5]} 43... Ke5 {[%clk 0:00:21.4]} 44.
a4 {[%clk 0:00:05.6]} 44... f4 {[%clk 0:00:21.6]} 45. gxf4+ {[%clk 0:00:04.9]}
45... Kxf4 {[%clk 0:00:21.6]} 46. a5 {[%clk 0:00:05.8]} 46... Kg4 {[%clk
0:00:21.7]} 47. a6 {[%clk 0:00:06.3]} 47... Kxh4 {[%clk 0:00:22.6]} 48. a7
{[%clk 0:00:07]} 48... Kg4 {[%clk 0:00:23.5]} 49. a8=Q {[%clk 0:00:07.7]} 1-0

[Event "*** SCC Grand Prix: Titled Tuesday Blitz"]
[Site "Chess.com"]
[Date "2020.07.21"]
[Round "6"]
[White "Duhless"]
[Black "Beca95"]
[Result "1/2-1/2"]
[WhiteElo "2967"]
[BlackElo "2848"]
[TimeControl "180+1"]
[EndTime "11:07:37 PDT"]
[Termination "Game drawn by stalemate"]

1. d4 {[%clk 0:03:00.9]} 1... Nf6 {[%clk 0:02:59.7]} 2. Nf3 {[%clk 0:03:00.8]}
2... e6 {[%clk 0:02:58.5]} 3. Bg5 {[%clk 0:02:59.6]} 3... d6 {[%clk 0:02:52.2]}
4. c4 {[%clk 0:02:54.5]} 4... h6 {[%clk 0:02:51.2]} 5. Bc1 {[%clk 0:02:52.4]}
5... c5 {[%clk 0:02:48.6]} 6. dxc5 {[%clk 0:02:50.7]} 6... dxc5 {[%clk
0:02:46.4]} 7. Qxd8+ {[%clk 0:02:46.2]} 7... Kxd8 {[%clk 0:02:47.3]} 8. Nc3
{[%clk 0:02:46]} 8... a6 {[%clk 0:02:39.1]} 9. Ne5 {[%clk 0:02:38.1]} 9... Ke8
{[%clk 0:02:37.3]} 10. g3 {[%clk 0:02:33.5]} 10... Nfd7 {[%clk 0:02:36.4]} 11.
Nd3 {[%clk 0:02:27]} 11... b6 {[%clk 0:02:07.7]} 12. Bg2 {[%clk 0:02:24.2]}
12... Ra7 {[%clk 0:02:08]} 13. a4 {[%clk 0:01:55.1]} 13... Bb7 {[%clk
0:02:07.9]} 14. Bxb7 {[%clk 0:01:53.9]} 14... Rxb7 {[%clk 0:02:08.8]} 15. a5
{[%clk 0:01:54.7]} 15... Nc6 {[%clk 0:01:37.5]} 16. axb6 {[%clk 0:01:54]} 16...
Rxb6 {[%clk 0:01:38.4]} 17. O-O {[%clk 0:01:49.7]} 17... Nd4 {[%clk 0:01:30.5]}
18. Ra2 {[%clk 0:01:40.8]} 18... Nb3 {[%clk 0:01:28.1]} 19. Be3 {[%clk
0:01:39.1]} 19... Bd6 {[%clk 0:01:27.2]} 20. Rd1 {[%clk 0:01:24.8]} 20... Ke7
{[%clk 0:01:25]} 21. Ne4 {[%clk 0:01:22.7]} 21... Rc8 {[%clk 0:01:20.8]} 22. Ra3
{[%clk 0:00:52.6]} 22... Bb8 {[%clk 0:01:17.9]} 23. Kg2 {[%clk 0:00:38.8]} 23...
f5 {[%clk 0:01:11.5]} 24. Nd2 {[%clk 0:00:38.3]} 24... Nxd2 {[%clk 0:01:10]} 25.
Rxd2 {[%clk 0:00:39.2]} 25... Bd6 {[%clk 0:00:58]} 26. Rd1 {[%clk 0:00:37.2]}
26... Ne5 {[%clk 0:00:48.9]} 27. Nxe5 {[%clk 0:00:32.6]} 27... Bxe5 {[%clk
0:00:49.8]} 28. Ra5 {[%clk 0:00:32.3]} 28... Bd6 {[%clk 0:00:46.7]} 29. b4
{[%clk 0:00:29.8]} 29... Rxb4 {[%clk 0:00:41.5]} 30. Rxa6 {[%clk 0:00:29.3]}
30... Be5 {[%clk 0:00:38.8]} 31. Ra7+ {[%clk 0:00:28]} 31... Kf6 {[%clk
0:00:39.1]} 32. Rdd7 {[%clk 0:00:27.8]} 32... Kg6 {[%clk 0:00:39.4]} 33. Ra6
{[%clk 0:00:21]} 33... Rxc4 {[%clk 0:00:21.3]} 34. Rxe6+ {[%clk 0:00:20.1]}
34... Bf6 {[%clk 0:00:21.8]} 35. h4 {[%clk 0:00:19.4]} 35... Rc2 {[%clk
0:00:15.9]} 36. Bf4 {[%clk 0:00:18.3]} 36... c4 {[%clk 0:00:16.2]} 37. Be5
{[%clk 0:00:17.2]} 37... Rxe2 {[%clk 0:00:13.7]} 38. Rxg7+ {[%clk 0:00:15.2]}
38... Kxg7 {[%clk 0:00:14.1]} 39. Bxf6+ {[%clk 0:00:15.5]} 39... Kf7 {[%clk
0:00:14.5]} 40. Rxe2 {[%clk 0:00:15.5]} 40... Kxf6 {[%clk 0:00:14.9]} 41. Kf3
{[%clk 0:00:15.9]} 41... c3 {[%clk 0:00:14.7]} 42. Rc2 {[%clk 0:00:16]} 42...
Ke5 {[%clk 0:00:14.7]} 43. Ke3 {[%clk 0:00:15.7]} 43... f4+ {[%clk 0:00:15.2]}
44. Kd3 {[%clk 0:00:11.7]} 44... fxg3 {[%clk 0:00:15.3]} 45. fxg3 {[%clk
0:00:12.6]} 45... Kf5 {[%clk 0:00:15.8]} 46. Rxc3 {[%clk 0:00:12.4]} 46... Rxc3+
{[%clk 0:00:13.7]} 47. Kxc3 {[%clk 0:00:13.3]} 47... Kg4 {[%clk 0:00:14.1]} 48.
Kd3 {[%clk 0:00:13.8]} 48... Kxg3 {[%clk 0:00:14.5]} 49. Ke2 {[%clk 0:00:14.7]}
49... Kxh4 {[%clk 0:00:14.9]} 50. Kf1 {[%clk 0:00:15.6]} 50... Kg3 {[%clk
0:00:15.2]} 51. Kg1 {[%clk 0:00:16.5]} 51... h5 {[%clk 0:00:15.8]} 52. Kh1
{[%clk 0:00:17.4]} 52... h4 {[%clk 0:00:16.4]} 53. Kg1 {[%clk 0:00:18.3]} 53...
h3 {[%clk 0:00:17.1]} 54. Kh1 {[%clk 0:00:19.2]} 54... h2 {[%clk 0:00:17.7]}
1/2-1/2